fUSD/lending_fUSD_20240301
["ID","MTS","AMOUNT","RATE_DAILY","PERIOD"]
[316037257,1709331033221,-138178.81039425,0.000219,2]
[316037260,1709331033234,-1058.06002277,0.000219,2]
[316037262,1709331033246,-1032.87677638,0.000219,2]
[316037264,1709331033257,-23938.8624,0.000219,2]
[316037267,1709331033273,-49853.61460582,0.000219,2]
[316037269,1709331033284,-2809.04215093,0.000219,2]
[316037271,1709331033295,-266.36837817,0.000219,2]
[316037273,1709331033306,-2748.96026514,0.000219,2]
[316037761,1709331038244,-351.23487269,0.000219,2]
[316037763,1709331038255,-548.14784203,0.000219,2]
[316037769,1709331038304,-5275.42908291,0.000219,2]
[316037771,1709331038314,-750.0,0.000219,2]
[316037774,1709331038324,-806.79968372,0.000219,2]
[316037776,1709331038334,-2750.0,0.000219,2]
[316037778,1709331038343,-180.66,0.00021907,2]
[316037780,1709331038353,-191.28,0.00021907,2]
[316037782,1709331038363,-235.38453496,0.00021915,2]
[316037784,1709331038372,-213.71639733,0.00021915,2]
[316037786,1709331038382,-515.20853637,0.00021915,7]
[316037788,1709331038392,-638.21895078,0.00021915,2]
[316037790,1709331038402,-155.0,0.00021915,2]
[316037792,1709331038412,-2112.68108779,0.00021915,2]
[316037794,1709331038422,-430.18751135,0.00021916,2]
[316037796,1709331038432,-5802.02243049,0.00021916,2]
[316037798,1709331038442,-376511.98215006,0.00021917,4]
[316037800,1709331038454,-389651.1135751,0.00021917,4]
[316037802,1709331038467,-3195.23258283,0.00021917,4]
[316037805,1709331038483,-1425.94447234,0.00021917,4]
[316037807,1709331038497,-1708.77529307,0.00021917,4]
[316037810,1709331038509,-1129.55719286,0.00021917,4]
[316037812,1709331038522,-1745.55646344,0.00021917,4]
[316037843,1709331038964,-16393.34406496,0.00021917,4]
[316037844,1709331038978,-469.63768121,0.00021917,4]
[316037845,1709331038991,-20002.22765623,0.00021917,4]
[316037846,1709331039003,-241628.2244506,0.00021917,4]
[316037847,1709331039016,-263.40803857,0.00021917,4]
[316037848,1709331039039,-1786.06658553,0.00021917,4]
[316037849,1709331039056,-20662.57528944,0.00021917,4]
[316037850,1709331039067,-362.67383406,0.00021917,4]
[316037851,1709331039079,-692.79472096,0.00021917,4]
[316037852,1709331039090,-369.57765299,0.00021917,4]
[316037853,1709331039107,-1287.48825632,0.00021917,4]
[316037854,1709331039118,-406.46916604,0.00021917,4]
[316037855,1709331039130,-1346.283965,0.00021917,4]
[316037856,1709331039142,-39793.05305917,0.00021917,4]
[316037857,1709331039164,-289.30814126,0.00021917,4]
[316038021,1709331040810,-2650.7651343,0.00021917,4]
[316038028,1709331040871,-2442.75343024,0.00021917,4]
[316038035,1709331040933,-563.77983143,0.00021917,4]
[316038038,1709331040945,-499.69436571,0.00021917,4]
[316038040,1709331040956,-11000.0,0.00021917,4]
[316038045,1709331040995,-557.2843266,0.00021917,4]
[316038047,1709331041007,-500.0,0.00021917,4]
[316038051,1709331041034,-342.1570288,0.00021917,4]
[316038053,1709331041046,-730.07124766,0.00021917,4]
[316038055,1709331041057,-11098.475368,0.00021917,4]
[316038112,1709331041644,-187926.73732284,0.00021917,4]
[316038114,1709331041655,-450.31909424,0.00021917,4]
[316038117,1709331041671,-1194.64773874,0.00021917,4]
[316038130,1709331041785,-12117.19786936,0.00021917,4]
[316038132,1709331041796,-1156.03624292,0.00021917,4]
[316038295,1709331043309,-918.94557291,0.00021917,4]
[316038303,1709331043374,-511.680005,0.00021917,4]
[316038316,1709331043491,-263.35205591,0.00020917,2]
[316038318,1709331043500,-102.97420722,0.00021917,4]
[316038332,1709331043619,-1472.0999991,0.00021917,4]
[316038619,1709331046623,-1864.45157684,0.00021917,4]
[316038621,1709331046635,-6260.496,0.00021917,4]
[316038625,1709331046663,-3282.25773088,0.00021917,4]
[316038628,1709331046675,-1355.81491264,0.00021917,4]
[316038631,1709331046692,-277.92653484,0.00021917,4]
[316038633,1709331046703,-573.27155235,0.00021917,4]
[316038635,1709331046719,-3125.15,0.00021917,4]
[316038640,1709331046748,-415.0,0.00021917,4]
[316039070,1709331063764,202.0,0.00019587,2]
[316039071,1709331077353,2480.0,0.0002,2]
[316039072,1709331123740,688.76,0.00019086,2]
[316039073,1709331305625,292.19513566,0.00020424,2]
[316039074,1709331310460,292.19513557,0.00020497,2]
[316039075,1709331324205,155.7,0.00020342,2]
[316039076,1709331324379,155.7,0.00020487,2]
[316039077,1709331333670,500.0,0.00020182,2]
[316039078,1709331369095,162.51,0.00020113,2]
[316039079,1709331396122,174.18,0.00020113,2]
[316039080,1709331428971,1469.0,0.00020313,2]
[316039081,1709331445231,250.0,0.00020116,2]
[316039082,1709331466423,150.0,0.00020105,2]
[316039083,1709331474448,250.0,0.00020105,2]
[316039085,1709331589759,654.32,0.00018178,2]
[316039086,1709331589968,654.32,0.00020442,2]
[316039087,1709331601031,314.2,0.000201,2]
[316039088,1709331628980,359.68,0.00020098,2]
[316039089,1709331638377,159.76,0.00020098,2]
[316039090,1709331654017,151.14,0.00020234,2]
[316039091,1709331654236,151.14,0.00020292,2]
[316039092,1709331654647,151.14,0.00020351,2]
[316039093,1709331657585,151.14,0.00020409,2]
[316039094,1709331657834,151.14,0.00020468,2]
[316039095,1709331744818,250.0,0.0002004,2]
[316039096,1709331750721,1877.66,0.00020043,2]
[316039097,1709331800833,262.97562207,0.00020427,2]
[316039098,1709331853644,150.0,0.0002036,2]
[316039099,1709331863117,162.14711318,0.00020499,2]
[316039100,1709331900198,-262.97562201,0.000205,2]
[316039101,1709331900226,-150.0,0.00020523,2]
[316039102,1709331905065,150.0,0.00020223,2]
[316039103,1709331905423,150.0,0.00020122,2]
[316039104,1709331910080,-1000.0,0.00020524,2]
[316039105,1709331910104,-19459.3152,0.00020524,2]
[316039106,1709331918750,250.0,0.00020055,2]
[316039107,1709331927798,250.0,0.00020055,2]
[316039108,1709331941982,164.64,0.0002005,2]
[316039109,1709331945206,11643.87,0.0002005,2]
[316039110,1709331964974,150.0,0.00020363,2]
[316039111,1709331965152,150.0,0.00020327,2]
[316039112,1709331965198,150.0,0.00020204,2]
[316039113,1709331965393,150.0,0.00019777,2]
[316039114,1709331965460,150.0,0.00019803,2]
[316039115,1709331966980,201.0,0.00019581,2]
[316039116,1709332121176,2742.2926,0.00020448,2]
[316039117,1709332123244,-162.14711318,0.00020526,2]
[316039118,1709332123265,-151.14,0.00020527,2]
[316039119,1709332123286,-2964.69771375,0.0002054,2]
[316039120,1709332123307,-150.0,0.00020541,2]
[316039121,1709332123326,-6967.09,0.00020548,2]
[316039122,1709332123347,-150.0,0.00020559,2]
[316039123,1709332123369,-262.97562201,0.00020573,2]
[316039124,1709332123389,-151.14,0.00020585,2]
[316039125,1709332123409,-150.0,0.00020606,2]
[316039126,1709332123430,-150.0,0.00020614,2]
[316039127,1709332123449,-423.98,0.00020632,2]
[316039128,1709332123471,-155.7,0.00020632,2]
[316039129,1709332123491,-151.14,0.00020644,2]
[316039130,1709332123511,-262.97562201,0.00020646,2]
[316039131,1709332123531,-300.0,0.00020653,2]
[316039132,1709332123553,-150.0,0.00020654,2]
[316039133,1709332123575,-150.0,0.00020655,2]
[316039134,1709332123596,-150.0,0.00020691,2]
[316039135,1709332123617,-151.14,0.00020702,2]
[316039136,1709332123638,-188.79664354,0.00020709,2]
[316039137,1709332123660,-262.97562201,0.0002072,2]
[316039138,1709332123679,-151.14,0.00020761,2]
[316039139,1709332123699,-150.0,0.00020764,2]
[316039140,1709332123721,-155.7,0.00020778,2]
[316039141,1709332123740,-1049.04,0.00020791,2]
[316039142,1709332123760,-499.99,0.00020791,2]
[316039143,1709332123780,-649.63,0.00020791,2]
[316039144,1709332123800,-262.97562201,0.00020793,2]
[316039145,1709332123820,-151.14,0.00020819,2]
[316039146,1709332123839,-2281.56,0.00020822,2]
[316039147,1709332123858,-150.0,0.00020836,2]
[316039148,1709332123879,-262.97562201,0.00020866,2]
[316039149,1709332123899,-640.32,0.00020876,2]
[316039150,1709332123918,-151.14,0.00020878,2]
[316039151,1709332123937,-300.0,0.00020916,2]
[316039152,1709332123958,-155.7,0.00020923,2]
[316039153,1709332123978,-151.14,0.00020937,2]
[316039154,1709332124000,-262.97562201,0.00020939,2]
[316039155,1709332124020,-259.9,0.00020942,2]
[316039156,1709332124041,-150.0,0.00020948,2]
[316039157,1709332124062,-150.0,0.00020951,2]
[316039158,1709332124084,-151.14,0.00020995,2]
[316039159,1709332124103,-711.27529657,0.00021,2]
[316039160,1709332125671,151.0,0.00020451,2]
[316039161,1709332141617,605.76,0.00018357,2]
[316039162,1709332141762,605.76,0.00020621,2]
[316039163,1709332150263,151.14,0.00020437,2]
[316039164,1709332150430,151.14,0.00020703,2]
[316039165,1709332150692,151.14,0.0002097,2]
[316039166,1709332161214,711.27529657,0.00021,2]
[316039167,1709332170167,712.25,0.00020289,2]
[316039168,1709332207828,500.0,0.00020274,2]
[316039169,1709332207859,250.0,0.00020274,2]
[316039170,1709332215424,1796.95,0.0002028,2]
[316039175,1709332231617,-204.01923883,0.00021008,2]
[316039176,1709332231628,-155.0,0.00021009,2]
[316039177,1709332231638,-162.14711318,0.00021009,2]
[316039178,1709332231648,-262.97562201,0.00021012,2]
[316039179,1709332231657,-32.12921446,0.00021027,2]
[316039180,1709332231678,-217.87078554,0.00021027,2]
[316039181,1709332231687,-150.0,0.00021027,2]
[316039182,1709332231697,-155.7,0.00021068,2]
[316039183,1709332231707,-514.58,0.00021079,2]
[316039184,1709332231717,-262.97562201,0.00021085,2]
[316039185,1709332231727,-150.0,0.00021095,2]
[316039186,1709332231737,-1285.0,0.00021096,2]
[316039187,1709332231746,-2431.44492599,0.00021096,2]
[316039188,1709332231758,-2248.54507401,0.00021096,2]
[316039189,1709332231768,-1000.0,0.00021096,2]
[316039190,1709332231778,-151.0,0.00021136,2]
[316039191,1709332231788,-150.0,0.00021154,2]
[316039192,1709332231797,-262.97562201,0.00021159,2]
[316039193,1709332231808,-201.0,0.00021197,4]
[316039194,1709332231819,-155.7,0.00021213,2]
[316039195,1709332231829,-262.97562201,0.00021232,2]
[316039196,1709332231840,-151.14,0.00021236,2]
[316039197,1709332231850,-231.77132963,0.00021258,2]
[316039198,1709332231861,-155.0,0.00021258,2]
[316039199,1709332231871,-408.79186619,0.00021258,2]
[316039200,1709332231880,-280.6024,0.00021258,2]
[316039201,1709332231890,-585.39808615,0.00021258,2]
[316039202,1709332231902,-719.0247636,0.00021258,2]
[316039203,1709332231929,-1540.90309334,0.00021258,2]
[316039205,1709332231940,-1290.7783,0.00021258,2]
[316039208,1709332231952,-2033.09575211,0.00021258,2]
[316039209,1709332231970,-18893.1160048,0.00021258,2]
[316039210,1709332231980,-779.37590237,0.00021259,2]
[316039211,1709332231990,-896.0336,0.0002126,7]
[316039212,1709332232002,-31390.6249,0.0002126,2]
[316039213,1709332232012,-150.0,0.00021268,2]
[316039214,1709332232027,-250.0,0.00021301,2]
[316039215,1709332232037,-262.97562201,0.00021305,2]
[316039216,1709332232048,-1344.05873735,0.00021311,2]
[316039217,1709332232058,-150.0,0.00021341,2]
[316039218,1709332232068,-150.55,0.00021348,2]
[316039219,1709332232079,-2267.2641,0.00021357,2]
[316039220,1709332232089,-329249.28408129,0.00021358,2]
[316039221,1709332232100,-155.7,0.00021359,2]
[316039222,1709332232109,-104966.37434163,0.0002136,2]
[316039223,1709332232125,-95033.62565837,0.0002136,2]
[316039224,1709332232135,-3286.0,0.0002137,2]
[316039225,1709332232145,-262.97562201,0.00021378,2]
[316039226,1709332232156,-150.0,0.00021383,2]
[316039227,1709332232172,-1344.05873735,0.00021396,2]
[316039228,1709332232182,-150.0,0.00021412,2]
[316039229,1709332232191,-150.0,0.00021426,2]
[316039230,1709332232202,-150.0,0.00021446,2]
[316039231,1709332232214,-262.97562201,0.00021451,2]
[316039232,1709332232224,-174.18,0.00021454,2]
[316039233,1709332232234,-150.0,0.00021455,2]
[316039234,1709332232244,-150.0,0.00021464,2]
[316039235,1709332232253,-168.54,0.00021475,2]
[316039236,1709332232263,-182.64,0.00021475,2]
[316039237,1709332232274,-779.37590236,0.00021493,2]
[316039238,1709332232283,-151.14,0.00021502,2]
[316039239,1709332232294,-155.7,0.00021504,2]
[316039240,1709332232305,-150.0,0.00021504,2]
[316039241,1709332232315,-150.0,0.00021504,2]
[316039242,1709332232326,-150.0,0.00021513,2]
[316039243,1709332232337,-162.62287496,0.00021519,2]
[316039244,1709332232348,-150.0,0.00021521,2]
[316039245,1709332232358,-262.97562201,0.00021524,2]
[316039246,1709332232369,-150.0,0.00021529,2]
[316039247,1709332232379,-150.0,0.00021562,2]
[316039248,1709332232388,-150.0,0.00021573,2]
[316039249,1709332232398,-250.0,0.00021575,2]
[316039250,1709332232408,-300.0,0.00021575,2]
[316039251,1709332232419,-262.97562201,0.00021598,2]
[316039252,1709332232430,-150.0,0.00021648,2]
[316039253,1709332232440,-155.7,0.00021649,2]
[316039254,1709332232450,-262.97562201,0.00021671,2]
[316039255,1709332232464,-779.37590236,0.00021728,2]
[316039256,1709332232474,-150.0,0.00021736,2]
[316039257,1709332232484,-262.97562201,0.00021744,2]
[316039258,1709332232495,-155.7,0.00021795,2]
[316039259,1709332232505,-24079.25421241,0.000218,2]
[316039260,1709332232527,-8754.85752732,0.000218,2]
[316039261,1709332232554,-2340.90074693,0.000218,2]
[316039262,1709332232567,-1001.22537841,0.000218,2]
[316039263,1709332232578,-1505.16886062,0.000218,2]
[316039264,1709332232591,-8677.80064027,0.000218,2]
[316039265,1709332232604,-6027.08441636,0.000218,2]
[316039266,1709332232615,-1694.62636499,0.000218,2]
[316039267,1709332232627,-275.56378333,0.000218,2]
[316039268,1709332232637,-2882.5706257,0.00021817,2]
[316039269,1709332237497,-545.10868923,0.00021817,2]
[316039270,1709332237617,-1572.32068507,0.00021817,2]
[316039271,1709332237627,-1444.31914519,0.00021817,2]
[316039272,1709332237686,-3555.68085481,0.00021817,2]
[316039273,1709332237696,-55555.0,0.00021817,2]
[316039274,1709332237706,-239.99673658,0.00021817,2]
[316039275,1709332237716,-171.72357031,0.00021817,2]
[316039296,1709332238097,-197.24197603,0.00021817,2]
[316039300,1709332238124,-262.97562201,0.00021817,2]
[316039302,1709332238132,-150.0,0.00021817,2]
[316039304,1709332238141,-953.63821133,0.00021817,2]
[316039306,1709332238150,-2561.05221316,0.00021817,2]
[316039308,1709332238159,-335.88780482,0.00021849,2]
[316039310,1709332238172,-1000.0,0.00021899,2]
[316039312,1709332238181,-1000.0,0.000219,2]
[316039314,1709332238189,-341983.27220354,0.00021917,4]
[316039318,1709332238223,-3553.74757574,0.00021917,4]
[316039320,1709332238234,-5375.00776594,0.00021917,4]
[316039513,1709332240051,-151.0,0.0002191,2]
[316039515,1709332240060,-6209.1319748,0.00021917,4]
[316039586,1709332240705,-2782.14077539,0.00021917,4]
[316039588,1709332240717,-500.0,0.00021917,4]
[316039595,1709332240770,-2075.80658571,0.00021917,4]
[316039603,1709332240833,-8000.0,0.00021917,4]
[316039794,1709332242569,-371.78781108,0.00021915,2]
[316039796,1709332242581,-1289.13023224,0.00021915,2]
[316039798,1709332242592,-900.13416983,0.00021915,2]
[316039800,1709332242601,-20583.64793734,0.00021917,4]
[316039810,1709332242687,-155.0,0.00021916,2]
[316039812,1709332242697,-330.98464148,0.00021917,4]
[316039819,1709332242749,-639.60267008,0.00021917,4]
[316039821,1709332242761,-329.31344555,0.00021917,4]
[316039828,1709332242812,-35102.19422994,0.00021917,4]
[316039830,1709332242823,-343074.77902119,0.00021917,4]
[316039837,1709332242874,-413.38500295,0.00021917,4]
[316039839,1709332242886,-612.3500005,0.00021917,4]
[316039970,1709332245550,-162.14711318,0.00021916,2]
[316039971,1709332245560,-406.88288682,0.00021917,4]
[316039972,1709332245571,-3298.97079941,0.00021917,4]
[316039973,1709332247584,-342.24194828,0.00021917,4]
[316039974,1709332247648,-9845.97826995,0.00021917,4]
[316039975,1709332247660,-55853.22,0.00021917,4]
[316039976,1709332247710,-3434.9,0.00021917,4]
[316039977,1709332247780,-4053.39577252,0.00021917,4]
[316039978,1709332247792,-714.08278086,0.00021917,4]
[316039979,1709332247844,-10797.70756412,0.00021917,4]
[316039980,1709332247857,-2325.78008093,0.00021917,4]
[316039981,1709332248689,150.0,0.00020077,2]
[316039982,1709332263991,203.0,0.00019581,2]
[316039983,1709332327743,157.1,0.00020856,2]
[316039984,1709332367581,250.0,0.0002005,2]
[316039985,1709332388641,174.18,0.00020832,2]
[316039986,1709332419766,1878.49,0.00020826,2]
[316039987,1709332432889,23900.0,0.00020826,2]
[316039988,1709332460579,250.0,0.00020229,2]
[316039989,1709332471059,150.0,0.00020826,2]
[316039990,1709332510653,2550.0,0.0002,3]
[316039991,1709332521575,500.0,0.00020802,2]
[316039992,1709332558166,171.52,0.00020802,2]
[316039993,1709332637343,545.18,0.00018875,2]
[316039994,1709332654042,201.0,0.00020814,2]
[316039995,1709332673102,430.2,0.00020793,2]
[316039996,1709332700733,250.0,0.00020793,2]
[316039997,1709332754277,165.33,0.00020793,2]
[316039998,1709332781208,1479.82,0.00020793,2]
[316039999,1709332837800,10000.0,0.0002,2]
[316040000,1709332846507,5000.0,0.00021,2]
[316040001,1709332861224,250.0,0.00020789,2]
[316040002,1709332865082,347.0,0.00020836,2]
[316040003,1709332903026,256.0,0.00020451,2]
[316040004,1709332915807,3000.0,0.00021,2]
[316040005,1709332946377,405.73842869,0.00021,2]
[316040006,1709332962030,250.0,0.00020788,2]
[316040007,1709333042912,157.1,0.00020741,2]
[316040008,1709333050997,174.18,0.00020783,2]
[316040009,1709333109067,838.1006164,0.0002,2]
[316040010,1709333131886,517.92,0.00018823,2]
[316040011,1709333139423,655.84,0.00020741,2]
[316040012,1709333162051,2756.77585657,0.00020996,2]
[316040013,1709333229660,1378.38792829,0.00020996,2]
[316040014,1709333249061,986.54,0.00020793,2]
[316040015,1709333297094,500.0,0.00020742,2]
[316040016,1709333297629,1378.38792827,0.00020996,2]
[316040017,1709333313058,250.0,0.00020741,2]
[316040018,1709333319798,250.0,0.00020742,2]
[316040019,1709333339352,157.19,0.00020743,2]
[316040020,1709333339551,157.19,0.00020915,2]
[316040021,1709333373740,201.0,0.00020447,2]
[316040022,1709333407592,250.0,0.00020655,2]
[316040032,1709333431660,-162.14711318,0.00021012,2]
[316040033,1709333431670,-155.0,0.00021013,2]
[316040034,1709333431679,-36.68261381,0.0002103,2]
[316040035,1709333431691,-141.31738619,0.0002103,2]
[316040036,1709333431701,-157.33051381,0.00021087,2]
[316040037,1709333431712,-360.58948619,0.00021087,2]
[316040038,1709333431722,-28.63271381,0.00021088,2]
[316040039,1709333431883,-128.55728619,0.00021088,2]
[316040040,1709333431892,-1387.1007378,0.00021096,2]
[316040041,1709333431904,-979.94850117,0.00021096,2]
[316040042,1709333431916,-1042.40023561,0.00021096,2]
[316040043,1709333431927,-511.8,0.00021096,2]
[316040044,1709333431939,-550.0,0.00021096,2]
[316040045,1709333432965,-499.57052542,0.00021096,2]
[316040046,1709333432975,-256.0,0.00021136,2]
[316040047,1709333432985,-150.0,0.00021178,2]
[316040048,1709333432994,-165.33,0.00021209,2]
[316040049,1709333433004,-157.19,0.00021261,2]
[316040050,1709333433013,-404.75076188,0.00021261,2]
[316040051,1709333433034,-655.74923812,0.00021261,2]
[316040052,1709333433043,-157.19,0.00021434,2]
[316040053,1709333433052,-83.91408144,0.00021438,6]
[316040054,1709333433064,-104.1411234,0.00021438,6]
[316040055,1709333433074,-150.0,0.00021446,2]
[316040056,1709333433083,-150.0,0.00021446,2]
[316040057,1709333433093,-188.05520484,0.00021447,6]
[316040058,1709333433103,-499.99,0.00021447,2]
[316040059,1709333433112,-562.09804383,0.00021447,2]
[316040060,1709333433124,-1102.77195617,0.00021447,2]
[316040061,1709333433134,-145.54086878,0.00021448,2]
[316040062,1709333433147,-679.79460828,0.00021448,2]
[316040063,1709333433160,-479.01209786,0.00021448,2]
[316040064,1709333433170,-188.05520484,0.00021451,6]
[316040065,1709333433179,-188.05520484,0.00021475,6]
[316040066,1709333433189,-157.19,0.00021607,2]
[316040067,1709333433199,-165.33,0.00021625,2]
[316040068,1709333433209,-150.0,0.00021634,2]
[316040069,1709333433218,-150.0,0.00021637,2]
[316040070,1709333433228,-150.0,0.0002164,2]
[316040071,1709333433237,-21.73877575,0.00021643,2]
[316040072,1709333433320,-128.26122425,0.00021643,2]
[316040073,1709333433329,-186.75643765,0.00021646,2]
[316040074,1709333433339,-300.0,0.00021646,2]
[316040075,1709333433348,-150.0,0.00021646,2]
[316040076,1709333433358,-150.0,0.00021648,2]
[316040077,1709333433367,-150.0,0.0002165,2]
[316040079,1709333433377,-150.99,0.00021654,2]
[316040080,1709333433387,-150.0,0.00021654,2]
[316040082,1709333433396,-725.7944328,0.00021655,2]
[316040084,1709333433405,-150.0,0.00021657,2]
[316040085,1709333433414,-150.0,0.00021658,2]
[316040087,1709333433424,-150.0,0.0002166,2]
[316040089,1709333433434,-150.0,0.0002166,2]
[316040091,1709333433443,-150.0,0.0002166,2]
[316040093,1709333433453,-150.0,0.00021663,2]
[316040095,1709333433462,-150.0,0.00021663,2]
[316040097,1709333433471,-150.0,0.00021665,2]
[316040099,1709333433480,-150.0,0.00021665,2]
[316040101,1709333433490,-150.0,0.00021665,2]
[316040103,1709333433499,-150.0,0.00021665,2]
[316040104,1709333433509,-150.0,0.00021666,2]
[316040106,1709333433520,-150.0,0.00021668,2]
[316040108,1709333433529,-150.0,0.00021668,2]
[316040110,1709333433538,-150.0,0.0002167,2]
[316040112,1709333433547,-150.0,0.00021671,2]
[316040114,1709333433557,-150.0,0.00021675,2]
[316040116,1709333433566,-150.0,0.00021676,2]
[316040117,1709333433575,-300.0,0.0002168,2]
[316040119,1709333433585,-150.0,0.0002168,2]
[316040121,1709333433596,-150.0,0.00021681,2]
[316040123,1709333433606,-150.0,0.00021682,2]
[316040125,1709333433615,-150.0,0.00021684,2]
[316040127,1709333433625,-150.0,0.00021687,2]
[316040129,1709333433634,-150.0,0.00021689,2]
[316040131,1709333433643,-1500.0,0.0002169,2]
[316040133,1709333433653,-150.0,0.00021692,2]
[316040134,1709333433662,-300.0,0.00021693,2]
[316040135,1709333433671,-150.0,0.00021695,2]
[316040136,1709333433682,-150.0,0.00021695,2]
[316040137,1709333433691,-150.0,0.00021695,2]
[316040138,1709333433701,-150.0,0.00021702,2]
[316040139,1709333433710,-150.0,0.00021702,2]
[316040140,1709333433719,-150.0,0.00021702,2]
[316040142,1709333433728,-150.0,0.00021706,2]
[316040144,1709333433738,-150.0,0.00021707,2]
[316040146,1709333433748,-150.0,0.00021708,2]
[316040147,1709333433756,-150.0,0.00021714,2]
[316040148,1709333433765,-150.0,0.0002172,2]
[316040149,1709333433774,-150.0,0.00021721,2]
[316040150,1709333433784,-150.0,0.0002173,2]
[316040151,1709333433792,-150.0,0.00021731,2]
[316040152,1709333433801,-150.0,0.00021735,2]
[316040153,1709333433810,-150.0,0.00021741,2]
[316040154,1709333433819,-150.0,0.00021745,2]
[316040155,1709333433829,-150.0,0.00021745,2]
[316040156,1709333433838,-300.0,0.00021746,2]
[316040157,1709333433847,-150.0,0.00021752,2]
[316040158,1709333433856,-150.0,0.00021754,2]
[316040159,1709333433865,-150.0,0.00021755,2]
[316040160,1709333433874,-4923.41,0.00021756,2]
[316040161,1709333433884,-150.0,0.00021757,2]
[316040162,1709333433893,-150.0,0.00021758,2]
[316040163,1709333433902,-150.0,0.00021761,2]
[316040164,1709333433911,-150.0,0.00021762,2]
[316040165,1709333433920,-150.0,0.00021764,2]
[316040166,1709333433929,-150.0,0.00021764,2]
[316040167,1709333433938,-150.0,0.00021765,2]
[316040168,1709333433947,-300.0,0.00021768,2]
[316040169,1709333433956,-150.0,0.00021768,2]
[316040170,1709333433966,-150.0,0.00021776,2]
[316040171,1709333433974,-150.0,0.00021778,2]
[316040172,1709333433983,-1500.0,0.00021779,2]
[316040173,1709333433993,-150.0,0.00021779,2]
[316040174,1709333434002,-157.19,0.0002178,2]
[316040175,1709333434012,-150.0,0.00021783,2]
[316040176,1709333434021,-239.48423977,0.00021784,2]
[316040177,1709333434030,-150.0,0.0002179,2]
[316040178,1709333434039,-150.0,0.00021795,2]
[316040179,1709333434048,-6708.0,0.000218,2]
[316040180,1709333434057,-150.0,0.00021801,2]
[316040181,1709333434066,-300.0,0.00021803,2]
[316040182,1709333434076,-150.0,0.00021804,2]
[316040183,1709333434085,-150.0,0.00021807,2]
[316040184,1709333434094,-150.0,0.00021809,2]
[316040185,1709333434103,-150.0,0.0002181,2]
[316040186,1709333434114,-2500.0,0.00021811,2]
[316040187,1709333434123,-487.10993901,0.00021811,2]
[316040188,1709333434133,-150.0,0.00021813,2]
[316040189,1709333434142,-150.0,0.00021813,2]
[316040190,1709333434152,-1000.0,0.00021816,2]
[316040191,1709333434160,-762.91056904,0.00021816,2]
[316040192,1709333434169,-100000.0,0.00021817,2]
[316040193,1709333434179,-1063.6668,0.00021817,2]
[316040194,1709333434188,-5000.0,0.00021817,2]
[316040195,1709333434197,-5000.0,0.00021817,2]
[316040196,1709333434206,-5000.0,0.00021817,2]
[316040197,1709333434216,-5000.0,0.00021817,2]
[316040198,1709333434225,-159.9978244,0.00021817,2]
[316040199,1709333434234,-171.72357029,0.00021817,2]
[316040200,1709333434243,-211.98850865,0.00021817,2]
[316040201,1709333434253,-150.0,0.00021817,2]
[316040202,1709333434262,-256.0,0.00021821,2]
[316040203,1709333434271,-150.0,0.00021821,2]
[316040204,1709333434280,-150.0,0.00021821,2]
[316040205,1709333434289,-150.0,0.00021823,2]
[316040206,1709333434299,-150.0,0.00021823,2]